Workbook

Sheet 給与台帳
B2: 支給日 | E2: 給与台帳 | W2: 令和 | AB2: 年 | AF2: 月分 | AV2: 承認印 | AZ2: 承認印 | BD2: 検印 | BH2: 係印
AM3: 部 | AR3: 課
B5: 社員番号
B6: 氏名
B7: 勤務状態 | D7: 出勤 | F7: 日 | G7: 欠勤 | I7: 日 | J7: 出勤 | L7: 日 | M7: 欠勤 | O7: 日 | P7: 出勤 | R7: 日 | S7: 欠勤 | U7: 日 | V7: 出勤 | X7: 日 | Y7: 欠勤 | AA7: 日 | AB7: 出勤 | AD7: 日 | AE7: 欠勤 | AG7: 日 | AH7: 出勤 | AJ7: 日 | AK7: 欠勤 | AM7: 日 | AN7: 出勤 | AP7: 日 | AQ7: 欠勤 | AS7: 日 | AT7: 出勤 | AV7: 日 | AW7: 欠勤 | AY7: 日 | AZ7: 出勤 | BB7: 日 | BC7: 欠勤 | BE7: 日 | BF7: 出勤 | BH7: 日 | BI7: 欠勤 | BK7: 日
D8: 遅刻 | F8: 回 | I8: 分 | J8: 遅刻 | L8: 回 | O8: 分 | P8: 遅刻 | R8: 回 | U8: 分 | V8: 遅刻 | X8: 回 | AA8: 分 | AB8: 遅刻 | AD8: 回 | AG8: 分 | AH8: 遅刻 | AJ8: 回 | AM8: 分 | AN8: 遅刻 | AP8: 回 | AS8: 分 | AT8: 遅刻 | AV8: 回 | AY8: 分 | AZ8: 遅刻 | BB8: 回 | BE8: 分 | BF8: 遅刻 | BH8: 回 | BK8: 分
D9: 早退 | F9: 回 | I9: 分 | J9: 早退 | L9: 回 | O9: 分 | P9: 早退 | R9: 回 | U9: 分 | V9: 早退 | X9: 回 | AA9: 分 | AB9: 早退 | AD9: 回 | AG9: 分 | AH9: 早退 | AJ9: 回 | AM9: 分 | AN9: 早退 | AP9: 回 | AS9: 分 | AT9: 早退 | AV9: 回 | AY9: 分 | AZ9: 早退 | BB9: 回 | BE9: 分 | BF9: 早退 | BH9: 回 | BK9: 分
D10: 休日 出勤 | F10: 日 | I10: 時間 | J10: 休日 出勤 | L10: 日 | O10: 時間 | P10: 休日 出勤 | R10: 日 | U10: 時間 | V10: 休日 出勤 | X10: 日 | AA10: 時間 | AB10: 休日 出勤 | AD10: 日 | AG10: 時間 | AH10: 休日 出勤 | AJ10: 日 | AM10: 時間 | AN10: 休日 出勤 | AP10: 日 | AS10: 時間 | AT10: 休日 出勤 | AV10: 日 | AY10: 時間 | AZ10: 休日 出勤 | BB10: 日 | BE10: 時間 | BF10: 休日 出勤 | BH10: 日 | BK10: 時間
D11: 有給 休暇 | F11: 日 | G11: 残 | I11: 日 | J11: 有給 休暇 | L11: 日 | M11: 残 | O11: 日 | P11: 有給 休暇 | R11: 日 | S11: 残 | U11: 日 | V11: 有給 休暇 | X11: 日 | Y11: 残 | AA11: 日 | AB11: 有給 休暇 | AD11: 日 | AE11: 残 | AG11: 日 | AH11: 有給 休暇 | AJ11: 日 | AK11: 残 | AM11: 日 | AN11: 有給 休暇 | AP11: 日 | AQ11: 残 | AS11: 日 | AT11: 有給 休暇 | AV11: 日 | AW11: 残 | AY11: 日 | AZ11: 有給 休暇 | BB11: 日 | BC11: 残 | BE11: 日 | BF11: 有給 休暇 | BH11: 日 | BI11: 残 | BK11: 日
D12: 残業 | G12: 時間 | J12: 残業 | M12: 時間 | P12: 残業 | S12: 時間 | V12: 残業 | Y12: 時間 | AB12: 残業 | AE12: 時間 | AH12: 残業 | AK12: 時間 | AN12: 残業 | AQ12: 時間 | AT12: 残業 | AW12: 時間 | AZ12: 残業 | BC12: 時間 | BF12: 残業 | BI12: 時間
D13: 深夜 | G13: 時間 | J13: 深夜 | M13: 時間 | P13: 深夜 | S13: 時間 | V13: 深夜 | Y13: 時間 | AB13: 深夜 | AE13: 時間 | AH13: 深夜 | AK13: 時間 | AN13: 深夜 | AQ13: 時間 | AT13: 深夜 | AW13: 時間 | AZ13: 深夜 | BC13: 時間 | BF13: 深夜 | BI13: 時間
B14: 支給内訳 | C14: 基本給
C15: 職務手当
C16: 皆勤手当
C17: 家族手当
C18: 残業手当 | D18: =E12*H12 -> 0 | J18: =K12*N12 -> 0 | P18: =Q12*T12 -> 0 | V18: =W12*Z12 -> 0 | AB18: =AC12*AF12 -> 0 | AH18: =AI12*AL12 -> 0 | AN18: =AO12*AR12 -> 0 | AT18: =AU12*AX12 -> 0 | AZ18: =BA12*BD12 -> 0 | BF18: =BG12*BJ12 -> 0
C19: 深夜手当 | D19: =E13*H13 -> 0 | J19: =K13*N13 -> 0 | P19: =Q13*T13 -> 0 | V19: =W13*Z13 -> 0 | AB19: =AC13*AF13 -> 0 | AH19: =AI13*AL13 -> 0 | AN19: =AO13*AR13 -> 0 | AT19: =AU13*AX13 -> 0 | AZ19: =BA13*BD13 -> 0 | BF19: =BG13*BJ13 -> 0
B23: ① 総支給額 | D23: =SUM(D14:I22) -> 0 | J23: =SUM(J14:O22) -> 0 | P23: =SUM(P14:U22) -> 0 | V23: =SUM(V14:AA22) -> 0 | AB23: =SUM(AB14:AG22) -> 0 | AH23: =SUM(AH14:AM22) -> 0 | AN23: =SUM(AN14:AS22) -> 0 | AT23: =SUM(AT14:AY22) -> 0 | AZ23: =SUM(AZ14:BE22) -> 0 | BF23: =SUM(BF14:BK22) -> 0
B24: 社会保険控除額 | C24: 健康保険
C25: 厚生年金保険
C26: 雇用保険
C27: ② 保険料合計 | D27: =SUM(D24:I26) -> 0 | J27: =SUM(J24:O26) -> 0 | P27: =SUM(P24:U26) -> 0 | V27: =SUM(V24:AA26) -> 0 | AB27: =SUM(AB24:AG26) -> 0 | AH27: =SUM(AH24:AM26) -> 0 | AN27: =SUM(AN24:AS26) -> 0 | AT27: =SUM(AT24:AY26) -> 0 | AZ27: =SUM(AZ24:BE26) -> 0 | BF27: =SUM(BF24:BK26) -> 0
B28: ③社会保険料控除後の金額 ①－② | D28: =D23-D27 -> 0 | J28: =J23-J27 -> 0 | P28: =P23-P27 -> 0 | V28: =V23-V27 -> 0 | AB28: =AB23-AB27 -> 0 | AH28: =AH23-AH27 -> 0 | AN28: =AN23-AN27 -> 0 | AT28: =AT23-AT27 -> 0 | AZ28: =AZ23-AZ27 -> 0 | BF28: =BF23-BF27 -> 0
B29: 控除金額額内訳 | C29: 所得税
C30: （扶養 人) | D30: (扶養 | H30: 人) | J30: (扶養 | N30: 人) | P30: (扶養 | T30: 人) | V30: (扶養 | Z30: 人) | AB30: (扶養 | AF30: 人) | AH30: (扶養 | AL30: 人) | AN30: (扶養 | AR30: 人) | AT30: (扶養 | AX30: 人) | AZ30: (扶養 | BD30: 人) | BF30: (扶養 | BJ30: 人)
C31: 市町村民税
C35: ④ 控除額計 | D35: =SUM(D29,D31:I34) -> 0 | J35: =SUM(J29,J31:O34) -> 0 | P35: =SUM(P29,P31:U34) -> 0 | V35: =SUM(V29,V31:AA34) -> 0 | AB35: =SUM(AB29,AB31:AG34) -> 0 | AH35: =SUM(AH29,AH31:AM34) -> 0 | AN35: =SUM(AN29,AN31:AS34) -> 0 | AT35: =SUM(AT29,AT31:AY34) -> 0 | AZ35: =SUM(AZ29,AZ31:BE34) -> 0 | BF35: =SUM(BF29,BF31:BK34) -> 0
B36: ⑤ 出張手当等の非課税給
B37: 差引支給額 ③－④＋⑤ | D37: =D28-D35+D36 -> 0 | J37: =J28-J35+J36 -> 0 | P37: =P28-P35+P36 -> 0 | V37: =V28-V35+V36 -> 0 | AB37: =AB28-AB35+AB36 -> 0 | AH37: =AH28-AH35+AH36 -> 0 | AN37: =AN28-AN35+AN36 -> 0 | AT37: =AT28-AT35+AT36 -> 0 | AZ37: =AZ28-AZ35+AZ36 -> 0 | BF37: =BF28-BF35+BF36 -> 0

Sheet 使い方
B2: 支給日 | E2: 給与台帳 | W2: 令和 | Z2: 16 | AB2: 年 | AD2: 4 | AF2: 月分 | AV2: 承認印 | AZ2: 承認印 | BD2: 検印 | BH2: 係印
B3: 2020-05-25 | AI3: 営業 | AM3: 部 | AN3: 営業１ | AR3: 課
B5: 社員番号 | D5: 1001 | J5: 1002
B6: 氏名 | D6: 阿部 信夫 | J6: 古田 典夫
B7: 勤務状態 | D7: 出勤 | E7: 20 | F7: 日 | G7: 欠勤 | H7: 2 | I7: 日 | J7: 出勤 | K7: 21 | L7: 日 | M7: 欠勤 | O7: 日 | P7: 出勤 | R7: 日 | S7: 欠勤 | U7: 日 | V7: 出勤 | X7: 日 | Y7: 欠勤 | AA7: 日 | AB7: 出勤 | AD7: 日 | AE7: 欠勤 | AG7: 日 | AH7: 出勤 | AJ7: 日 | AK7: 欠勤 | AM7: 日 | AN7: 出勤 | AP7: 日 | AQ7: 欠勤 | AS7: 日 | AT7: 出勤 | AV7: 日 | AW7: 欠勤 | AY7: 日 | AZ7: 出勤 | BB7: 日 | BC7: 欠勤 | BE7: 日 | BF7: 出勤 | BH7: 日 | BI7: 欠勤 | BK7: 日
D8: 遅刻 | E8: 1 | F8: 回 | G8: 15 | I8: 分 | J8: 遅刻 | L8: 回 | O8: 分 | P8: 遅刻 | R8: 回 | U8: 分 | V8: 遅刻 | X8: 回 | AA8: 分 | AB8: 遅刻 | AD8: 回 | AG8: 分 | AH8: 遅刻 | AJ8: 回 | AM8: 分 | AN8: 遅刻 | AP8: 回 | AS8: 分 | AT8: 遅刻 | AV8: 回 | AY8: 分 | AZ8: 遅刻 | BB8: 回 | BE8: 分 | BF8: 遅刻 | BH8: 回 | BK8: 分
D9: 早退 | E9: 2 | F9: 回 | G9: 120 | I9: 分 | J9: 早退 | L9: 回 | O9: 分 | P9: 早退 | R9: 回 | U9: 分 | V9: 早退 | X9: 回 | AA9: 分 | AB9: 早退 | AD9: 回 | AG9: 分 | AH9: 早退 | AJ9: 回 | AM9: 分 | AN9: 早退 | AP9: 回 | AS9: 分 | AT9: 早退 | AV9: 回 | AY9: 分 | AZ9: 早退 | BB9: 回 | BE9: 分 | BF9: 早退 | BH9: 回 | BK9: 分
D10: 休日 出勤 | E10: 1 | F10: 日 | G10: 3.5 | I10: 時間 | J10: 休日 出勤 | L10: 日 | O10: 時間 | P10: 休日 出勤 | R10: 日 | U10: 時間 | V10: 休日 出勤 | X10: 日 | AA10: 時間 | AB10: 休日 出勤 | AD10: 日 | AG10: 時間 | AH10: 休日 出勤 | AJ10: 日 | AM10: 時間 | AN10: 休日 出勤 | AP10: 日 | AS10: 時間 | AT10: 休日 出勤 | AV10: 日 | AY10: 時間 | AZ10: 休日 出勤 | BB10: 日 | BE10: 時間 | BF10: 休日 出勤 | BH10: 日 | BK10: 時間
D11: 有給 休暇 | E11: 1 | F11: 日 | G11: 残 | H11: 12 | I11: 日 | J11: 有給 休暇 | K11: 2 | L11: 日 | M11: 残 | N11: 11 | O11: 日 | P11: 有給 休暇 | R11: 日 | S11: 残 | U11: 日 | V11: 有給 休暇 | X11: 日 | Y11: 残 | AA11: 日 | AB11: 有給 休暇 | AD11: 日 | AE11: 残 | AG11: 日 | AH11: 有給 休暇 | AJ11: 日 | AK11: 残 | AM11: 日 | AN11: 有給 休暇 | AP11: 日 | AQ11: 残 | AS11: 日 | AT11: 有給 休暇 | AV11: 日 | AW11: 残 | AY11: 日 | AZ11: 有給 休暇 | BB11: 日 | BC11: 残 | BE11: 日 | BF11: 有給 休暇 | BH11: 日 | BI11: 残 | BK11: 日
D12: 残業 | E12: 8 | G12: 時間 | H12: @2,500 | J12: 残業 | L12: 時間 | M12: @ | N12: 2,250 | P12: 残業 | R12: 時間 | S12: @ | V12: 残業 | X12: 時間 | Y12: @ | AB12: 残業 | AD12: 時間 | AE12: @ | AH12: 残業 | AJ12: 時間 | AK12: @ | AN12: 残業 | AP12: 時間 | AQ12: @ | AT12: 残業 | AV12: 時間 | AW12: @ | AZ12: 残業 | BB12: 時間 | BC12: @ | BF12: 残業 | BH12: 時間 | BI12: @
D13: 深夜 | E13: 2 | G13: 時間 | H13: @2,750 | J13: 深夜 | L13: 時間 | M13: @ | N13: 2,500 | P13: 深夜 | R13: 時間 | S13: @ | V13: 深夜 | X13: 時間 | Y13: @ | AB13: 深夜 | AD13: 時間 | AE13: @ | AH13: 深夜 | AJ13: 時間 | AK13: @ | AN13: 深夜 | AP13: 時間 | AQ13: @ | AT13: 深夜 | AV13: 時間 | AW13: @ | AZ13: 深夜 | BB13: 時間 | BC13: @ | BF13: 深夜 | BH13: 時間 | BI13: @
B14: 支給内訳 | C14: 基本給 | D14: 250,000 | J14: 230,000
C15: 職務手当
C16: 皆勤手当 | J16: 10,000
C17: 家族手当 | D17: 20,000
C18: 残業手当 | D18: =E12*H12 -> 20,000 | J18: =K12*N12 -> 0
C19: 深夜手当 | D19: =E13*H13 -> 5,500 | J19: =K13*N13 -> 0
B23: ① 総支給額 | D23: =SUM(D14:I22) -> 295,500 | J23: =SUM(J14:O22) -> 240,000 | P23: =SUM(P14:U22) -> 0 | V23: =SUM(V14:AA22) -> 0 | AB23: =SUM(AB14:AG22) -> 0 | AH23: =SUM(AH14:AM22) -> 0 | AN23: =SUM(AN14:AS22) -> 0 | AT23: =SUM(AT14:AY22) -> 0 | AZ23: =SUM(AZ14:BE22) -> 0 | BF23: =SUM(BF14:BK22) -> 0
B24: 社会保険控除額 | C24: 健康保険 | D24: 12,000 | J24: 10,000
C25: 厚生年金保険 | D25: 25,000 | J25: 23,000
C26: 雇用保険 | D26: 2,000 | J26: 1,500
C27: ② 保険料合計 | D27: =SUM(D24:I26) -> 39,000 | J27: =SUM(J24:O26) -> 34,500 | P27: =SUM(P24:U26) -> 0 | V27: =SUM(V24:AA26) -> 0 | AB27: =SUM(AB24:AG26) -> 0 | AH27: =SUM(AH24:AM26) -> 0 | AN27: =SUM(AN24:AS26) -> 0 | AT27: =SUM(AT24:AY26) -> 0 | AZ27: =SUM(AZ24:BE26) -> 0 | BF27: =SUM(BF24:BK26) -> 0
B28: ③社会保険料控除後の金額 ①－② | D28: =D23-D27 -> 256,500 | J28: =J23-J27 -> 205,500 | P28: =P23-P27 -> 0 | V28: =V23-V27 -> 0 | AB28: =AB23-AB27 -> 0 | AH28: =AH23-AH27 -> 0 | AN28: =AN23-AN27 -> 0 | AT28: =AT23-AT27 -> 0 | AZ28: =AZ23-AZ27 -> 0 | BF28: =BF23-BF27 -> 0
B29: 控除金額額内訳 | C29: 所得税 | D29: 11,000 | J29: 8,000
C30: （扶養 人) | D30: (扶養 | F30: 2 | H30: 人) | J30: (扶養 | N30: 人) | P30: (扶養 | T30: 人) | V30: (扶養 | Z30: 人) | AB30: (扶養 | AF30: 人) | AH30: (扶養 | AL30: 人) | AN30: (扶養 | AR30: 人) | AT30: (扶養 | AX30: 人) | AZ30: (扶養 | BD30: 人) | BF30: (扶養 | BJ30: 人)
C31: 市町村民税 | D31: 8,000 | J31: 6,500
C35: ④ 控除額計 | D35: =SUM(D29,D31:I34) -> 19,000 | J35: =SUM(J29,J31:O34) -> 14,500 | P35: =SUM(P29,P31:U34) -> 0 | V35: =SUM(V29,V31:AA34) -> 0 | AB35: =SUM(AB29,AB31:AG34) -> 0 | AH35: =SUM(AH29,AH31:AM34) -> 0 | AN35: =SUM(AN29,AN31:AS34) -> 0 | AT35: =SUM(AT29,AT31:AY34) -> 0 | AZ35: =SUM(AZ29,AZ31:BE34) -> 0 | BF35: =SUM(BF29,BF31:BK34) -> 0
B36: ⑤ 出張手当等の非課税給 | D36: 5,000
B37: 差引支給額 ③－④＋⑤ | D37: =D28-D35+D36 -> 242,500 | J37: =J28-J35+J36 -> 191,000 | P37: =P28-P35+P36 -> 0 | V37: =V28-V35+V36 -> 0 | AB37: =AB28-AB35+AB36 -> 0 | AH37: =AH28-AH35+AH36 -> 0 | AN37: =AN28-AN35+AN36 -> 0 | AT37: =AT28-AT35+AT36 -> 0 | AZ37: =AZ28-AZ35+AZ36 -> 0 | BF37: =BF28-BF35+BF36 -> 0
